Workbook

Sheet entrata_-_titoli
C1: Comune di Lozio Provincia di Brescia Dati "Bilancio Facile" - Entrate
B3: TITOLO | D3: TOTALE
D4: 2017 | E4: 2018 | F4: 2019
D5: STANZIAMENTI CP | E5: STANZIAMENTI CP | F5: STANZIAMENTI CP
B6: 1 | C6: Entrate correnti di natura tributaria, contributiva e perequativa | D6: ='entrate_tributarie_-_categorie'!F10 -> 328000 | E6: ='entrate_tributarie_-_categorie'!G10 -> 326500 | F6: ='entrate_tributarie_-_categorie'!H10 -> 326500
B7: 2 | C7: Trasferimenti correnti | D7: =entrate_da_trasferimenti_corren!F11 -> 15580 | E7: =entrate_da_trasferimenti_corren!G11 -> 10180 | F7: =entrate_da_trasferimenti_corren!H11 -> 10180
B8: 3 | C8: Entrate extratributarie | D8: ='entrate_extratributarie_-_categ'!F11 -> 177955 | E8: ='entrate_extratributarie_-_categ'!G11 -> 177955 | F8: ='entrate_extratributarie_-_categ'!H11 -> 177955
B9: 4 | C9: Entrate in conto capitale | D9: ='entrate_in_conto_capitale_-_cat'!F11 -> 3847941 | E9: ='entrate_in_conto_capitale_-_cat'!G11 -> 1413585 | F9: ='entrate_in_conto_capitale_-_cat'!H11 -> 48585
B10: 5 | C10: Entrate da riduzione di attività finanziarie | D10: ='entrate_in_conto_capitale_-_rid'!F10 -> 0 | E10: 0 | F10: 0
B11: 6 | C11: Accensione Prestiti | D11: ='entrate_in_conto_capitale_-_acc'!F10 -> 0 | E11: ='entrate_in_conto_capitale_-_acc'!G10 -> 0 | F11: ='entrate_in_conto_capitale_-_acc'!H10 -> 0
B12: 7 | C12: Anticipazioni da istituto tesoriere/cassiere | D12: 147876 | E12: 147876 | F12: 147876
B13: 9 | C13: Entrate per conto terzi e partite di giro | D13: 282000 | E13: 282000 | F13: 282000
D14: 0 | E14: 0 | F14: 0
C15: TOTALE | D15: =SUM(D6:D14) -> 4799352 | E15: =SUM(E6:E14) -> 2358096 | F15: =SUM(F6:F14) -> 993096

Sheet entrate_tributarie_-_categorie
C1: Comune di Lozio Provincia di Brescia Dati "Bilancio Facile" - Entrate tributarie
B3: TITOLO 1 | D3: CATEGORIA | F3: TOTALE
F4: 2017 | G4: 2018 | H4: 2019
F5: STANZIAMENTI CP | G5: STANZIAMENTI CP | H5: STANZIAMENTI CP
B6: 1 | C6: Entrate correnti di natura tributaria, contributiva e perequativa | D6: 10101 | E6: Imposte, tasse e proventi assimilati | F6: 308000 | G6: 306500 | H6: 306500
D7: 10104 | E7: Compartecipazioni di tributi | F7: 0 | G7: 0 | H7: 0
D8: 10301 | E8: Fondi perequativi da Amministrazioni Centrali | F8: 20000 | G8: 20000 | H8: 20000
D9: 10302 | E9: Fondi perequativi dalla Regione o Provincia auton. | F9: 0 | G9: 0 | H9: 0
C10: TOTALE | F10: =SUM(F6:F9) -> 328000 | G10: =SUM(G6:G9) -> 326500 | H10: 326500

Sheet entrate_da_trasferimenti_corren
C1: Comune di Lozio Provincia di Brescia Dati "Bilancio Facile" - Entrate da trasferimenti correnti
B3: TITOLO 2 | D3: CATEGORIA | F3: TOTALE
F4: 2017 | G4: 2018 | H4: 2019
F5: STANZIAMENTI CP | G5: STANZIAMENTI CP | H5: STANZIAMENTI CP
B6: 2 | C6: Trasferimenti correnti | D6: 20101 | E6: Trasferimenti correnti da Amministrazioni pubbliche | F6: 13480 | G6: 8080 | H6: 8080
D7: 20102 | E7: Trasferimenti correnti da Famiglie | F7: 0 | G7: 0 | H7: 0
D8: 20103 | E8: Trasferimenti correnti da Imprese | F8: 2100 | G8: 2100 | H8: 2100
D9: 20104 | E9: Trasferimenti correnti da Istituzioni Sociali Private | F9: 0 | G9: 0 | H9: 0
D10: 20105 | E10: Trasferimenti correnti dall’Unione europea e dal Resto del Mondo | F10: 0 | G10: 0 | H10: 0
C11: TOTALE | F11: =SUM(F6:F10) -> 15580 | G11: =SUM(G6:G10) -> 10180 | H11: 10180

Sheet entrate_extratributarie_-_categ
C1: Comune di Lozio Provincia di Brescia Dati "Bilancio Facile" - Entrate extratributarie
B3: TITOLO 3 | D3: CATEGORIA | F3: TOTALE
F4: 2017 | G4: 2018 | H4: 2019
F5: STANZIAMENTI CP | G5: STANZIAMENTI CP | H5: STANZIAMENTI CP
B6: 3 | C6: Entrate extratributarie | D6: 30100 | E6: Vendita di beni e servizi e proventi derivanti dalla gestione dei beni | F6: 156275 | G6: 156275 | H6: 156275
D7: 30200 | E7: Proventi derivanti dall'attività di controllo e repressione delle irregolarità e degli illeciti | F7: 4000 | G7: 4000 | H7: 4000
D8: 30300 | E8: Interessi attivi | F8: 500 | G8: 500 | H8: 500
D9: 30400 | E9: Altre entrate da redditi da capitale | F9: 0 | G9: 0 | H9: 0
D10: 30500 | E10: Rimborsi e altre entrate correnti | F10: 17180 | G10: 17180 | H10: 17180
C11: TOTALE | F11: =SUM(F6:F10) -> 177955 | G11: =SUM(G6:G10) -> 177955 | H11: 177955

Sheet entrate_in_conto_capitale_-_cat
C1: Comune di Lozio Provincia di Brescia Dati "Bilancio Facile" - Entrate in conto capitale
B3: TITOLO 4 | D3: CATEGORIA | F3: TOTALE
F4: 2017 | G4: 2018 | H4: 2019
F5: STANZIAMENTI CP | G5: STANZIAMENTI CP | H5: STANZIAMENTI CP
B6: 4 | C6: Entrate in conto capitale | D6: 40100 | E6: Tributi in conto capitale | F6: 0 | G6: 0 | H6: 0
D7: 40200 | E7: Contributi agli investimenti | F7: 3026823 | G7: 385000 | H7: 20000
D8: 40300 | E8: Altri trasferimenti in conto capitale | F8: 700000 | G8: 1000000 | H8: 0
D9: 40400 | E9: Entrate da alienazione di beni materiali e immateriali | F9: 97118 | G9: 4585 | H9: 4585
D10: 40500 | E10: Altre entrate in conto capitale | F10: 24000 | G10: 24000 | H10: 24000
C11: TOTALE | F11: =SUM(F6:F10) -> 3847941 | G11: =SUM(G6:G10) -> 1413585 | H11: 48585

Sheet entrate_in_conto_capitale_-_rid
C1: Comune di Lozio Provincia di Brescia Dati "Bilancio Facile" - Entrate da riduzione di attività finanziarie
B3: TITOLO 5 | D3: CATEGORIA | F3: TOTALE
F4: 2017 | G4: 2018 | H4: 2019
F5: STANZIAMENTI CP | G5: STANZIAMENTI CP | H5: STANZIAMENTI CP
B6: 5 | C6: Entrate da riduzione di attività finanziarie | D6: 50100 | E6: Alienazione di attività finanziarie | F6: 0 | G6: 0 | H6: 0
D7: 50200 | E7: Riscossione crediti di breve termine | F7: 0 | G7: 0 | H7: 0
D8: 50300 | E8: Riscossione crediti di medio-lungo termine | F8: 0 | G8: 0 | H8: 0
D9: 50400 | E9: Altre entrate per riduzione di attività finanziarie | F9: 0 | G9: 0 | H9: 0
C10: TOTALE | F10: =SUM(F6:F9) -> 0 | G10: =SUM(G6:G9) -> 0 | H10: 0

Sheet entrate_in_conto_capitale_-_acc
D1: Comune di Lozio Provincia di Brescia Dati "Bilancio Facile" - Entrate da accensione prestiti
B3: TITOLO 6 | D3: CATEGORIA | F3: TOTALE
F4: 2017 | G4: 2018 | H4: 2019
F5: STANZIAMENTI CP | G5: STANZIAMENTI CP | H5: STANZIAMENTI CP
B6: 6 | C6: Accensione Prestiti | D6: 60100 | E6: Emissione di titoli obbligazionari | F6: 0 | G6: 0 | H6: 0
D7: 60200 | E7: Accensione prestiti a breve termine | F7: 0 | G7: 0 | H7: 0
D8: 60300 | E8: Accensione mutui e altri finanziamenti a medio lungo termine | F8: 0 | G8: 0 | H8: 0
D9: 60400 | E9: Altre forme di indebitamento | F9: 0 | G9: 0 | H9: 0
C10: TOTALE | F10: =SUM(F6:F9) -> 0 | G10: =SUM(G6:G9) -> 0 | H10: 0

Sheet principali_entrate_tributarie
C1: Comune di Lozio Provincia di Brescia Dati "Bilancio Facile" - Principali Entrate di natura tributaria, contributiva e perequativa
B3: TITOLO 1 | D3: CATEGORIA | F3: TOTALE
F4: 2017 | G4: 2018 | H4: 2019
F5: STANZIAMENTI CP | G5: STANZIAMENTI CP | H5: STANZIAMENTI CP
B6: 1 | C6: Entrate correnti di natura tributaria, contributiva e perequativa | E6: IMU | F6: 210000 | G6: 210000 | H6: 210000
E7: TARI | F7: 71000 | G7: 71000 | H7: 71000
E8: TASI | F8: 0 | G8: 0 | H8: 0
E9: ETC. | F9: =F11-F6-F7-F8-F10 -> 47000 | G9: =G11-G6-G7-G8-G10 -> 45500 | H9: 45500
F10: 0 | G10: 0 | H10: 0
C11: TOTALE | F11: ='entrate_tributarie_-_categorie'!F10 -> 328000 | G11: ='entrate_tributarie_-_categorie'!G10 -> 326500 | H11: ='entrate_tributarie_-_categorie'!H10 -> 326500

Sheet principali_entrate_da_trasferim
C1: Comune di Lozio Provincia di Brescia Dati "Bilancio Facile" - Principali entrate da trasferimenti correnti
B3: TITOLO 2 | D3: CATEGORIA | F3: TOTALE
F4: 2017 | G4: 2018 | H4: 2019
F5: STANZIAMENTI CP | G5: STANZIAMENTI CP | H5: STANZIAMENTI CP
B6: 2 | C6: Trasferimenti correnti | E6: TRASFERIMENTI DALLO STATO | F6: 4580 | G6: 1580 | H6: 1580
E7: TRASFERIMENTI DALLA REGIONE | F7: 0 | G7: 0 | H7: 0
E8: TRASFERIMENTI DALLA PROVINCIA | F8: 0 | G8: 0 | H8: 0
E9: ETC. | F9: =F11-F6-F7-F8-F10 -> 11000 | G9: =G11-G6-G7-G8-G10 -> 8600 | H9: 8600
F10: 0 | G10: 0 | H10: 0
C11: TOTALE | F11: =entrate_da_trasferimenti_corren!F11 -> 15580 | G11: =entrate_da_trasferimenti_corren!G11 -> 10180 | H11: =entrate_da_trasferimenti_corren!H11 -> 10180

Sheet principali_entrate_extratributa
C1: Comune di Lozio Provincia di Brescia Dati "Bilancio Facile" - Principali entrate extratributarie
B3: TITOLO 3 | D3: CATEGORIA | F3: TOTALE
F4: 2017 | G4: 2018 | H4: 2019
F5: STANZIAMENTI CP | G5: STANZIAMENTI CP | H5: STANZIAMENTI CP
B6: 3 | C6: Entrate extratributarie | E6: PROVENTI DEI SERVIZI | F6: 21620 | G6: 21620 | H6: 21620
E7: PROVENTI DA SANZIONI CDS | F7: 0 | G7: 0 | H7: 0
E8: ETC. | F8: =F11-F6-F7-F9-F10 -> 156335 | G8: =G11-G6-G7-G9-G10 -> 156335 | H8: 156335
F9: 0 | G9: 0 | H9: 0
F10: 0 | G10: 0 | H10: 0
C11: TOTALE | F11: ='entrate_extratributarie_-_categ'!F11 -> 177955 | G11: ='entrate_extratributarie_-_categ'!G11 -> 177955 | H11: ='entrate_extratributarie_-_categ'!H11 -> 177955

Sheet principali_entrate_in_conto_cap
C1: Comune di Lozio Provincia di Brescia Dati "Bilancio Facile" - Principali entrate in conto capitale
B3: TITOLI 4 – 5 – 6 | D3: CATEGORIA | F3: TOTALE
F4: 2017 | G4: 2018 | H4: 2019
F5: STANZIAMENTI CP | G5: STANZIAMENTI CP | H5: STANZIAMENTI CP
E6: Titolo IV | F6: 3847941 | G6: 1413585 | H6: 48585
E7: Titolo V | F7: 0 | G7: 0 | H7: 0
E8: Titolo VI | F8: 0 | G8: 0 | H8: 0
F9: 0 | G9: 0 | H9: 0
F10: 0 | G10: 0 | H10: 0
C11: TOTALE | F11: =SUM(F6:F10) -> 3847941 | G11: =SUM(G6:G10) -> 1413585 | H11: 48585

Sheet spesa_-_titoli
C1: Comune di Lozio Provincia di Brescia Dati "Bilancio Facile" - Spese
B3: TITOLO | D3: TOTALE
D4: 2017 | E4: 2018 | F4: 2019
D5: STANZIAMENTI CP | E5: STANZIAMENTI CP | F5: STANZIAMENTI CP
B6: 1 | C6: Spese correnti | D6: 466479.62 | E6: 458196.62 | F6: 455830
B7: 2 | C7: Spese in conto capitale | D7: 3863941 | E7: 1429585 | F7: 65514.62
B8: 3 | C8: Spese per incremento di attività finanziarie | D8: 0 | E8: 0 | F8: 0
B9: 4 | C9: Rimborso prestiti | D9: 39985 | E9: 41368 | F9: 42805
B10: 5 | C10: Chiusura anticipazioni da istituto tesoriere | D10: 147876 | E10: 147876 | F10: 147876
B11: 7 | C11: Spese per conto terzi e partite di giro | D11: 282000 | E11: 282000 | F11: 282000
D12: 0 | E12: 0 | F12: 0
C13: TOTALE | D13: =SUM(D6:D12) -> 4800281.62 | E13: =SUM(E6:E12) -> 2359025.62 | F13: 994025.62

Sheet spese_correnti_-_missioni
C1: Comune di Lozio Provincia di Brescia Dati "Bilancio Facile" - Spese per missione
B3: MISSIONE | D3: SPESE CORRENTI
D4: 2016 CASSA | E4: 2016 ACCERTAMENTI CP | F4: 2017 STANZIAMENTI CP | G4: 2018 STANZIAMENTI CP
B5: 1 | C5: SERVIZI ISTITUZIONALI, GENERALI E DI GESTIONE | D5: 535841.49 | E5: 200633.62 | F5: 193215.62 | G5: 191762
B6: 2 | C6: GIUSTIZIA | D6: 0 | E6: 0 | F6: 0 | G6: 0
B7: 3 | C7: ORDINE PUBBLICO E SICUREZZA | D7: 0 | E7: 0 | F7: 0 | G7: 0
B8: 4 | C8: ISTRUZIONE E DIRITTO ALLO STUDIO | D8: 37384.59 | E8: 31007 | F8: 31007 | G8: 31007
B9: 5 | C9: TUTELA E VALORIZZAZIONE DEI BENI E DELLE ATTIVITA' CULTURALI | D9: 9586.51 | E9: 3800 | F9: 3800 | G9: 3800
B10: 6 | C10: POLITICHE GIOVANILI, SPORT E TEMPO LIBERO | D10: 3437.58 | E10: 1600 | F10: 1600 | G10: 1600
B11: 7 | C11: TURISMO | D11: 231308.4 | E11: 3200 | F11: 3200 | G11: 3200
B12: 8 | C12: ASSETTO DEL TERRITORIO ED EDILIZIA ABITATIVA | D12: 219619.94 | E12: 0 | F12: 0 | G12: 0
B13: 9 | C13: SVILUPPO SOSTENIBILE E TUTELA DEL TERRITORIO E DELL'AMBIENTE | D13: 1269179.08 | E13: 63200 | F13: 63200 | G13: 63200
B14: 10 | C14: TRASPORTI E DIRITTO ALLA MOBILITA' | D14: 955411.28 | E14: 75956 | F14: 75956 | G14: 75956
B15: 11 | C15: SOCCORSO CIVILE | D15: 5777.74 | E15: 5120 | F15: 5120 | G15: 5120
B16: 12 | C16: DIRITTI SOCIALI, POLITICHE SOCIALI E FAMIGLIA | D16: 74698.5 | E16: 36785 | F16: 36785 | G16: 36785
B17: 13 | C17: TUTELA DELLA SALUTE | D17: 0 | E17: 0 | F17: 0 | G17: 0
B18: 14 | C18: SVILUPPO ECONOMICO E COMPETITIVITA' | D18: 353800 | E18: 0 | F18: 0 | G18: 0
B19: 15 | C19: POLITICHE PER IL LAVORO E LA FORMAZIONE PROFESSIONALE | D19: 0 | E19: 0 | F19: 0 | G19: 0
B20: 16 | C20: AGRICOLTURA, POLITICHE AGROALIMENTARI E PESCA | D20: 6760 | E20: 4260 | F20: 4260 | G20: 4260
B21: 17 | C21: ENERGIA E DIVERSIFICAZIONE DELLE FONTI ENERGETICHE | D21: 0 | E21: 0 | F21: 0 | G21: 0
B22: 18 | C22: RELAZIONI CON LE ALTRE AUTONOMIE TERRITORIALI E LOCALI RELAZIONI CON LE ALTRE AUTONOMIE TERRITORIALI E LOCALI | D22: 0 | E22: 0 | F22: 0 | G22: 0
B23: 19 | C23: RELAZIONI INTERNAZIONALI | D23: 0 | E23: 0 | F23: 0 | G23: 0
B24: 20 | C24: FONDI E ACCANTONAMENTI | D24: 72624.95 | E24: 14755 | F24: 14755 | G24: 14755
B25: 50 | C25: DEBITO PUBBLICO | D25: 61262 | E25: 26163 | F25: 25298 | G25: 24385
B26: 60 | C26: ANTICIPAZIONI FINANZIARIE | D26: 143037 | E26: 147876 | F26: 147876 | G26: 147876
B27: 99 | C27: SERVIZI PER CONTO TERZI | D27: 285078.91 | E27: 282000 | F27: 282000 | G27: 282000
D28: 0 | E28: 0 | F28: 0 | G28: 0
B29: TOTALE | D29: =SUM(D5:D28) -> 4264807.97 | E29: =SUM(E5:E28) -> 896355.62 | F29: 888072.62 | G29: 885706

Sheet spese_correnti_-_macroaggregati
C1: Comune di Lozio Provincia di Brescia Dati "Bilancio Facile" - Spese per macroaggregati
B3: TITOLO 1 | D3: TOTALE
D4: 2017 | E4: 2018 | F4: 2019
D5: STANZIAMENTI CP | E5: STANZIAMENTI CP | F5: STANZIAMENTI CP
B6: 1 | C6: Redditi da lavoro dipendente | D6: 95085 | E6: 95085 | F6: 95085
B7: 2 | C7: Imposte e tasse a carico dell'ente | D7: 10512 | E7: 10512 | F7: 10512
B8: 3 | C8: Acquisto di beni e servizi | D8: 239899.62 | E8: 232481.62 | F8: 231028
B9: 4 | C9: Trasferimenti correnti | D9: 66185 | E9: 66185 | F9: 66185
B10: 5 | C10: Trasferimenti di tributi | D10: 0 | E10: 0 | F10: 0
B11: 6 | C11: Fondi perequativi | D11: 0 | E11: 0 | F11: 0
B12: 7 | C12: Interessi passivi | D12: 26163 | E12: 25298 | F12: 24385
B13: 8 | C13: Altre spese per redditi da capitale | D13: 0 | E13: 0 | F13: 0
B14: 9 | C14: Rimborsi e poste correttive delle entrate | D14: 1500 | E14: 1500 | F14: 1500
B15: 10 | C15: Altre spese correnti | D15: 27135 | E15: 27135 | F15: 27135
D16: 0 | E16: 0 | F16: 0
C17: TOTALE | D17: =SUM(D6:D16) -> 466479.62 | E17: =SUM(E6:E16) -> 458196.62 | F17: 455830

Sheet spese_in_conto_capitale_-_missi
C1: Comune di Lozio Provincia di Brescia Dati "Bilancio Facile" - Spese in conto capitale per missioni
B3: MISSIONE | D3: SPESE IN C/CAPITALE
D4: 2017 | E4: 2018 | F4: 2019
D5: STANZIAMENTI CP | E5: STANZIAMENTI CP | F5: STANZIAMENTI CP
B6: 1 | C6: SERVIZI ISTITUZIONALI, GENERALI E DI GESTIONE | D6: 307918 | E6: 20385 | F6: 21314.62
B7: 2 | C7: GIUSTIZIA | D7: 0 | E7: 0 | F7: 0
B8: 3 | C8: ORDINE PUBBLICO E SICUREZZA | D8: 0 | E8: 0 | F8: 0
B9: 4 | C9: ISTRUZIONE E DIRITTO ALLO STUDIO | D9: 0 | E9: 0 | F9: 0
B10: 5 | C10: TUTELA E VALORIZZAZIONE DEI BENI E DELLE ATTIVITA' CULTURALI | D10: 0 | E10: 0 | F10: 0
B11: 6 | C11: POLITICHE GIOVANILI, SPORT E TEMPO LIBERO | D11: 250000 | E11: 0 | F11: 0
B12: 7 | C12: TURISMO | D12: 265000 | E12: 1000000 | F12: 0
B13: 8 | C13: ASSETTO DEL TERRITORIO ED EDILIZIA ABITATIVA | D13: 2000 | E13: 2000 | F13: 2000
B14: 9 | C14: SVILUPPO SOSTENIBILE E TUTELA DEL TERRITORIO E DELL'AMBIENTE | D14: 1836000 | E14: 26000 | F14: 26000
B15: 10 | C15: TRASPORTI E DIRITTO ALLA MOBILITA' | D15: 833523 | E15: 230000 | F15: 15000
B16: 11 | C16: SOCCORSO CIVILE | D16: 4500 | E16: 0 | F16: 0
B17: 12 | C17: DIRITTI SOCIALI, POLITICHE SOCIALI E FAMIGLIA | D17: 11200 | E17: 1200 | F17: 1200
B18: 13 | C18: TUTELA DELLA SALUTE | D18: 0 | E18: 0 | F18: 0
B19: 14 | C19: SVILUPPO ECONOMICO E COMPETITIVITA' | D19: 353800 | E19: 150000 | F19: 0
B20: 15 | C20: POLITICHE PER IL LAVORO E LA FORMAZIONE PROFESSIONALE | D20: 0 | E20: 0 | F20: 0
B21: 16 | C21: AGRICOLTURA, POLITICHE AGROALIMENTARI E PESCA | D21: 0 | E21: 0 | F21: 0
B22: 17 | C22: ENERGIA E DIVERSIFICAZIONE DELLE FONTI ENERGETICHE | D22: 0 | E22: 0 | F22: 0
B23: 18 | C23: RELAZIONI CON LE ALTRE AUTONOMIE TERRITORIALI E LOCALI RELAZIONI CON LE ALTRE AUTONOMIE TERRITORIALI E LOCALI | D23: 0 | E23: 0 | F23: 0
B24: 19 | C24: RELAZIONI INTERNAZIONALI | D24: 0 | E24: 0 | F24: 0
B25: 20 | C25: FONDI E ACCANTONAMENTI | D25: 0 | E25: 0 | F25: 0
B26: 50 | C26: DEBITO PUBBLICO | D26: 0 | E26: 0 | F26: 0
B27: 60 | C27: ANTICIPAZIONI FINANZIARIE | D27: 0 | E27: 0 | F27: 0
B28: 99 | C28: SERVIZI PER CONTO TERZI | D28: 0 | E28: 0 | F28: 0
D29: 0 | E29: 0 | F29: 0
B30: TOTALE | D30: =SUM(D6:D29) -> 3863941 | E30: =SUM(E6:E29) -> 1429585 | F30: 65514.62

Sheet spese_in_conto_capitale_-_macro
C1: Comune di Lozio Provincia di Brescia Dati "Bilancio Facile" - Spese in conto capitale per macroaggregati
B3: TITOLO 2 | D3: TOTALE TOTALE
D4: 2017 | E4: 2018 | F4: 2019
D5: STANZIAMENTI CP | E5: STANZIAMENTI CP | F5: STANZIAMENTI CP
B6: 1 | C6: Tributi in conto capitale a carico dell'ente | D6: 0 | E6: 0 | F6: 0
B7: 2 | C7: Investimenti fissi lordi e acquisto di terreni | D7: 3392341 | E7: 1426785 | F7: 62714.62
B8: 3 | C8: Contributi agli investimenti | D8: 471600 | E8: 2800 | F8: 2800
B9: 4 | C9: Altri trasferimenti in conto capitale | D9: 0 | E9: 0 | F9: 0
B10: 5 | C10: Altre spese in conto capitale | D10: 0 | E10: 0 | F10: 0
D11: 0 | E11: 0 | F11: 0
C12: TOTALE | D12: =SUM(D6:D11) -> 3863941 | E12: =SUM(E6:E11) -> 1429585 | F12: 65514.62

Sheet principali_spese_per_investimen
C1: Comune di Lozio Provincia di Brescia Dati "Bilancio Facile" - Principali spese per investimento
B3: TITOLO 2 | D3: TOTALE TOTALE
D4: 2017 | E4: 2018 | F4: 2019
D5: STANZIAMENTI CP | E5: STANZIAMENTI CP | F5: STANZIAMENTI CP
B6: 1 | C6: Scuole | D6: 0 | E6: 0 | F6: 0
B7: 2 | C7: Strade | D7: 833523 | E7: 230000 | F7: 15000
B8: 3 | C8: Patrimonio comunale | D8: 56118 | E8: 19585 | F8: 20514.62
B9: 4 | C9: Altro | D9: =D11-D6-D7-D8-D10 -> 2974300 | E9: =E11-E6-E7-E8-E10 -> 1180000 | F9: 30000
D10: 0 | E10: 0 | F10: 0
C11: TOTALE | D11: ='spesa_-_titoli'!D7 -> 3863941 | E11: ='spesa_-_titoli'!E7 -> 1429585 | F11: ='spesa_-_titoli'!F7 -> 65514.62

Sheet equilibri_di_bilancio
G1: Comune di Lozio Provincia di Brescia Dati "Bilancio Facile" - Equilibri 2017-2019
B3: VERIFICA DEGLI EQUILIBRI
E5: ENTRATA | J5: SPESA | N5: DIFFERENZA STANZIAMENTI
E6: 2017 | F6: 2018 | G6: 2019 | J6: 2017 | K6: 2018 | L6: 2019 | N6: 2017 | O6: 2018 | P6: 2019
B8: 1 | C8: Equilibrio della parte corrente (pareggio economico)
D10: Titolo | I10: Titolo
D11: UTILIZZO AVANZO | E11: 0 | F11: 0 | G11: 0
D12: FPV SPESE CORRENTI | E12: 929.62 | F12: 929.62 | G12: 929.62
D13: 1 | E13: ='entrata_-_titoli'!D6 -> 328000 | F13: ='entrata_-_titoli'!E6 -> 326500 | G13: ='entrata_-_titoli'!F6 -> 326500 | I13: 1 | J13: ='spesa_-_titoli'!D6 -> 466479.62 | K13: ='spesa_-_titoli'!E6 -> 458196.62 | L13: ='spesa_-_titoli'!F6 -> 455830
D14: 2 | E14: ='entrata_-_titoli'!D7 -> 15580 | F14: ='entrata_-_titoli'!E7 -> 10180 | G14: ='entrata_-_titoli'!F7 -> 10180 | I14: 4 | J14: ='spesa_-_titoli'!D9 -> 39985 | K14: ='spesa_-_titoli'!E9 -> 41368 | L14: ='spesa_-_titoli'!F9 -> 42805
D15: 3 | E15: ='entrata_-_titoli'!D8 -> 177955 | F15: ='entrata_-_titoli'!E8 -> 177955 | G15: ='entrata_-_titoli'!F8 -> 177955
D16: TOTALE | E16: =SUM(E11:E15) -> 522464.62 | F16: =SUM(F11:F15) -> 515564.62 | G16: 515564.62 | I16: TOTALE | J16: =SUM(J13:J15) -> 506464.62 | K16: =SUM(K13:K15) -> 499564.62 | L16: 498635 | N16: =E16-J16 -> 16000 | O16: =F16-K16 -> 16000 | P16: 16929.62
B20: 2 | C20: Equilibrio della parte investimenti
D22: Titolo | I22: Titolo
D23: UTILIZZO AVANZO | E23: 0 | F23: 0 | G23: 0
D24: FPV SPESE IN CONTO CAPITALE | E24: 0 | F24: 0 | G24: 0
D25: 4 | E25: ='entrata_-_titoli'!D9 -> 3847941 | F25: ='entrata_-_titoli'!E9 -> 1413585 | G25: ='entrata_-_titoli'!F9 -> 48585 | I25: 2 | J25: ='spesa_-_titoli'!D7 -> 3863941 | K25: ='spesa_-_titoli'!E7 -> 1429585 | L25: ='spesa_-_titoli'!F7 -> 65514.62
D26: 5 | E26: ='entrata_-_titoli'!D10 -> 0 | F26: ='entrata_-_titoli'!E10 -> 0 | G26: ='entrata_-_titoli'!F10 -> 0 | I26: 3 | J26: ='spesa_-_titoli'!D8 -> 0 | K26: ='spesa_-_titoli'!E8 -> 0 | L26: ='spesa_-_titoli'!F8 -> 0
D27: 6 | E27: ='entrata_-_titoli'!D11 -> 0 | F27: ='entrata_-_titoli'!E11 -> 0 | G27: ='entrata_-_titoli'!F11 -> 0
D28: TOTALE | E28: =SUM(E23:E27) -> 3847941 | F28: =SUM(F23:F27) -> 1413585 | G28: 48585 | I28: TOTALE | J28: =SUM(J25:J27) -> 3863941 | K28: =SUM(K25:K27) -> 1429585 | L28: 65514.62 | N28: =E28-J28 -> -16000 | O28: =F28-K28 -> -16000 | P28: -16929.62
B32: 3 | C32: Movimento fondi - Anticipazione di cassa
D34: Titolo | I34: Titolo
D35: 7 | E35: ='entrata_-_titoli'!D12 -> 147876 | F35: ='entrata_-_titoli'!E12 -> 147876 | G35: ='entrata_-_titoli'!F12 -> 147876 | I35: 5 | J35: ='spesa_-_titoli'!D10 -> 147876 | K35: ='spesa_-_titoli'!E10 -> 147876 | L35: ='spesa_-_titoli'!F10 -> 147876
D36: TOTALE | E36: =E35 -> 147876 | F36: =F35 -> 147876 | G36: 147876 | I36: TOTALE | J36: =J35 -> 147876 | K36: =K35 -> 147876 | L36: 147876 | N36: =E36-J36 -> 0 | O36: =F36-K36 -> 0 | P36: 0
B40: 4 | C40: Equilibrio delle partite di giro
D42: Titolo | I42: Titolo
D43: 9 | E43: ='entrata_-_titoli'!D13 -> 282000 | F43: ='entrata_-_titoli'!E13 -> 282000 | G43: ='entrata_-_titoli'!F13 -> 282000 | I43: 7 | J43: ='spesa_-_titoli'!D11 -> 282000 | K43: ='spesa_-_titoli'!E11 -> 282000 | L43: ='spesa_-_titoli'!F11 -> 282000
D44: TOTALE | E44: =E43 -> 282000 | F44: =F43 -> 282000 | G44: 282000 | I44: TOTALE | J44: =J43 -> 282000 | K44: =K43 -> 282000 | L44: 282000 | N44: =E44-J44 -> 0 | O44: =F44-K44 -> 0 | P44: 0
B48: 5 | C48: Pareggio finanziario
D50: Titolo | I50: Titolo
D51: UTILIZZO AVANZO PARTE CORRENTE | E51: =E11 -> 0 | F51: =F11 -> 0 | G51: 0
D52: UTILIZZO AVANZO PARTE CAPITALE | E52: =E23 -> 0 | F52: =F23 -> 0 | G52: 0
D53: FPV SPESE CORRENTI | E53: =E12 -> 929.62 | F53: =F12 -> 929.62 | G53: 929.62
D54: FPV SPESE IN CONTO CAPITALE | E54: =E24 -> 0 | F54: =F24 -> 0 | G54: 0
D55: 1 | E55: =E13 -> 328000 | F55: =F13 -> 326500 | G55: 326500 | I55: 1 | J55: =J13 -> 466479.62 | K55: =K13 -> 458196.62 | L55: 455830
D56: 2 | E56: =E14 -> 15580 | F56: =F14 -> 10180 | G56: 10180 | I56: 2 | J56: =J25 -> 3863941 | K56: =K25 -> 1429585 | L56: 65514.62
D57: 3 | E57: =E15 -> 177955 | F57: =F15 -> 177955 | G57: 177955 | I57: 3 | J57: =J26 -> 0 | K57: =K26 -> 0 | L57: 0
D58: 4 | E58: =E25 -> 3847941 | F58: =F25 -> 1413585 | G58: 48585 | I58: 4 | J58: =J14 -> 39985 | K58: =K14 -> 41368 | L58: 42805 | R58: 16 | S58: 6
D59: 5 | E59: =E26 -> 0 | F59: =F26 -> 0 | G59: 0 | I59: 5 | J59: =J35 -> 147876 | K59: =K35 -> 147876 | L59: 147876 | R59: 16 | S59: 6
D60: 6 | E60: =E27 -> 0 | F60: =F27 -> 0 | G60: 0 | I60: 7 | J60: =J43 -> 282000 | K60: =K43 -> 282000 | L60: 282000 | R60: 16 | S60: 6
D61: 7 | E61: =E35 -> 147876 | F61: =F35 -> 147876 | G61: 147876
D62: 9 | E62: =E43 -> 282000 | F62: =F43 -> 282000 | G62: 282000
D64: TOTALE | E64: =SUM(E51:E63) -> 4800281.62 | F64: =SUM(F51:F63) -> 2359025.62 | G64: 994025.62 | I64: TOTALE | J64: =SUM(J55:J63) -> 4800281.62 | K64: =SUM(K55:K63) -> 2359025.62 | L64: 994025.62 | N64: =E64-J64 -> 0 | O64: =F64-K64 -> 0 | P64: =G64-L64 -> 0

Sheet entità_mutui
C1: Comune di Lozio Provincia di Brescia Dati "Bilancio Facile" - Entità dei mutui
C3: 2015 | D3: 2016 | E3: 2017 | F3: 2018 | G3: 2019
B5: DEBITO RESIDUO INIZIALE | C5: 959271.24 | D5: =C9 -> 921873.85 | E5: =D9 -> 883207.88 | F5: 843224.14 | G5: 801857.37
B6: NUOVI PRESTITI | C6: 0 | D6: 0 | E6: 0 | F6: 0 | G6: 0
B7: RIMBORSO PRESTITI | C7: -37397.39 | D7: -38665.97 | E7: -39983.74 | F7: -41366.77 | G7: -42803.47
B8: ESTINZIONI ANTICIPATE | C8: 0 | D8: 0 | E8: 0 | F8: 0 | G8: 0
B9: TOTALE DEBITO AL 31/12 | C9: =SUM(C5:C8) -> 921873.85 | D9: =SUM(D5:D8) -> 883207.88 | E9: 843224.14 | F9: 801857.37 | G9: 759053.9
